bitfinex/quotes_SOLUSD_20251218
["timestamp","ask_amount","ask_price","bid_price","bid_amount"]
[1766088572735,11.04823515,118.24,118.16,0.7]
[1766088572736,8.80994492,118.22,118.16,0.7]
[1766088572919,8.80994492,118.22,118.18,0.7]
[1766088573121,10.43767296,118.24,118.19,11.74823515]
[1766088573335,9.26,118.22,118.19,11.74823515]
[1766088573527,9.26,118.24,118.2,0.7]
[1766088573727,8.80994492,118.29,118.23,11.74823515]
[1766088573935,9.26,118.28,118.25,11.04823515]
[1766088574141,8.45342701,118.3,118.25,0.7]
[1766088574333,8.45342701,118.3,118.22,0.7]
[1766088574334,28.50761788,118.29,118.22,0.7]
[1766088574638,11.04823515,118.27,118.24,0.7]
[1766088574848,9.26,118.28,118.23,0.7]
[1766088574849,11.04823515,118.26,118.23,0.7]
[1766088575028,11.04823515,118.27,118.23,0.7]
[1766088575540,17.71460139,118.28,118.21,0.7]
[1766088575541,11.04823515,118.26,118.21,0.7]
[1766088575718,9.26,118.25,118.21,0.7]
[1766088576243,20.30823515,118.25,118.21,0.7]
[1766088576440,9.26,118.25,118.19,11.74823515]
[1766088576613,28.76543627,118.25,118.19,11.74823515]
[1766088576818,11.04823515,118.24,118.19,11.74823515]
[1766088577247,11.04823515,118.24,118.19,0.7]
[1766088577422,17.71720112,118.25,118.2,0.7]
[1766088577423,28.76543627,118.25,118.2,0.7]
[1766088577757,10.43767296,118.26,118.2,11.04823515]
[1766088577941,9.26,118.25,118.21,11.74823515]
[1766088578525,11.04823515,118.24,118.19,10.43767296]
[1766088578843,11.04823515,118.24,118.19,11.74823515]
[1766088579035,19.50570543,118.24,118.19,0.7]
[1766088579229,11.04823515,118.22,118.17,10.43767296]
[1766088579545,11.04823515,118.22,118.17,0.7]
[1766088579546,9.26,118.21,118.17,0.7]
[1766088579926,20.30823515,118.21,118.17,0.7]
[1766088580262,20.30823515,118.21,118.13,0.9]
[1766088580263,19.85818007,118.18,118.13,0.9]
[1766088580563,11.04823515,118.16,118.13,0.9]
[1766088580725,28.7706966,118.17,118.13,0.9]
[1766088581449,28.77068542,118.17,118.13,0.9]
[1766088581655,20.30823515,118.17,118.13,0.9]
[1766088581859,11.04823515,118.18,118.14,0.7]
[1766088582162,11.04823515,118.25,118.18,0.7]
[1766088582454,11.04823515,118.22,118.18,0.7]
[1766088582753,28.31803762,118.21,118.16,11.11767296]
[1766088583553,11.04823515,118.21,118.17,0.68]
[1766088583752,9.26,118.21,118.18,11.72823515]
[1766088584154,9.26,118.21,118.18,11.04823515]
[1766088584353,9.26,118.23,118.2,0.68]
[1766088589255,9.26,118.23,118.2,11.04823515]
[1766088589467,8.45550086,118.27,118.22,11.72823515]
[1766088589762,20.30823515,118.26,118.22,0.68]
[1766088589961,20.30823515,118.26,118.21,11.04823515]
[1766088590135,20.30823515,118.26,118.21,11.72823515]
[1766088590344,9.26,118.26,118.22,11.72823515]
[1766088590642,17.71602039,118.26,118.22,11.72823515]
[1766088590846,28.76425554,118.26,118.22,0.68]
[1766088591144,11.04823515,118.24,118.2,0.68]
[1766088591445,8.80994492,118.25,118.2,0.68]
[1766088591446,9.26,118.23,118.2,0.68]
[1766088591755,9.26,118.24,118.21,0.68]
[1766088592162,20.30823515,118.24,118.21,0.68]
[1766088592339,9.26,118.24,118.21,0.68]
[1766088592973,9.26,118.25,118.22,0.68]
[1766088593476,9.26,118.25,118.22,11.04823515]
[1766088593646,9.26,118.25,118.23,0.68]
[1766088594241,34.92520089,118.27,118.24,0.68]
[1766088594445,45.97343604,118.27,118.24,0.68]
[1766088595040,21.1321261,118.31,118.25,11.04823515]
[1766088595340,41.27191496,118.37,118.21,10.43767296]
[1766088595341,20.30823515,118.32,118.27,11.72823515]
[1766088595539,9.26,118.31,118.27,0.68]
[1766088595743,11.04823515,118.3,118.27,0.68]
[1766088595947,11.04823515,118.29,118.27,0.68]
[1766088596658,9.26,118.31,118.25,0.68]
[1766088596659,11.04823515,118.28,118.25,0.68]
[1766088596862,20.30823515,118.28,118.25,0.68]
[1766088597471,9.26,118.28,118.25,0.68]
[1766088597671,20.30823515,118.28,118.25,0.68]
[1766088597881,9.26,118.28,118.25,0.68]
[1766088598368,11.04823515,118.26,118.2,0.68]
[1766088598574,11.04823515,118.26,118.22,0.68]
[1766088598762,19.50456567,118.26,118.22,0.68]
[1766088598963,11.04823515,118.24,118.18,8.46128943]
[1766088599144,11.04823515,118.24,118.19,11.72823515]
[1766088599567,11.04823515,118.24,118.2,0.68]
[1766088600944,29.59619184,118.26,118.2,0.68]
[1766088600945,9.26,118.27,118.24,0.68]
[1766088601459,9.26,118.27,118.22,0.66]
[1766088601657,11.04823515,118.26,118.22,0.66]
[1766088601964,42.18038106,118.29,118.23,11.04823515]
[1766088602279,11.04823515,118.31,118.26,11.04823515]
[1766088602580,9.26,118.32,118.28,0.66]
[1766088602757,19.4984633,118.34,118.29,0.66]
[1766088602948,20.30823515,118.33,118.29,0.66]
[1766088603772,9.26,118.33,118.29,0.66]
[1766088603974,20.30823515,118.33,118.29,0.66]
[1766088604185,0.88,118.4,118.32,11.04823515]
[1766088604381,0.88,118.4,118.37,11.04823515]
[1766088604382,0.2,118.4,118.37,11.04823515]
[1766088604555,0.2,118.4,118.38,11.04823515]
[1766088604754,0.2,118.4,118.39,11.04823515]
[1766088604950,20.98823515,118.44,118.39,11.04823515]
[1766088604951,9.94,118.44,118.39,11.04823515]
[1766088605172,21.10290063,118.47,118.42,11.04823515]
[1766088605173,0.68,118.46,118.42,11.04823515]
[1766088605555,9.26,118.47,118.43,11.04823515]
[1766088605759,0.68,118.46,118.41,11.04823515]
[1766088606248,0.68,118.46,118.42,11.04823515]
[1766088606450,0.68,118.49,118.44,11.04823515]
[1766088606670,0.68,118.49,118.44,10.43767296]
[1766088607073,0.68,118.49,118.41,8.80994492]
[1766088607074,0.68,118.48,118.41,8.80994492]
[1766088607272,0.68,118.48,118.42,11.04823515]
[1766088607273,0.68,118.47,118.42,11.04823515]
[1766088607473,11.72823515,118.46,118.41,10.43767296]
[1766088607808,11.72823515,118.44,118.39,11.04823515]
[1766088607956,11.72823515,118.44,118.38,21.48590811]
[1766088607957,0.68,118.43,118.38,21.48590811]
[1766088608156,11.72823515,118.42,118.36,17.25822266]
[1766088608357,0.68,118.4,118.35,11.04823515]
[1766088608580,0.68,118.4,118.36,11.04823515]
[1766088608778,10.43767296,118.46,118.39,11.04823515]
[1766088609085,20.98823515,118.45,118.4,11.04823515]
[1766088609257,0.68,118.44,118.4,11.04823515]
[1766088609454,11.72823515,118.43,118.37,27.69546815]
[1766088609747,0.68,118.43,118.38,11.04823515]
[1766088609952,11.72823515,118.43,118.38,11.04823515]
[1766088610148,0.68,118.44,118.4,11.04823515]
[1766088610375,0.68,118.43,118.39,11.04823515]
[1766088610579,0.68,118.43,118.39,19.49469574]
[1766088610879,20.98823515,118.45,118.4,11.04823515]
[1766088611074,9.94,118.45,118.4,11.04823515]
[1766088611255,9.94,118.45,118.41,11.04823515]
[1766088611976,9.94,118.45,118.4,19.49397926]
[1766088612280,0.68,118.43,118.38,9.26]
[1766088612474,11.72823515,118.43,118.38,20.30823515]
[1766088612774,11.72823515,118.43,118.38,28.7554443]
[1766088612974,20.30823515,118.45,118.39,19.49456836]
[1766088613179,9.91,118.45,118.4,19.49391642]
[1766088613367,20.95823515,118.45,118.39,17.25638291]
[1766088613686,20.95823515,118.45,118.39,19.85818007]
[1766088613860,20.13820131,118.49,118.43,11.04823515]
[1766088614052,11.69823515,118.47,118.41,10.43767296]
[1766088614262,11.69823515,118.46,118.41,10.43767296]
[1766088615298,11.69823515,118.46,118.41,18.88285713]
[1766088615769,0.65,118.49,118.43,11.04823515]
[1766088615971,8.80994492,118.52,118.46,11.04823515]
[1766088615972,11.04823515,118.52,118.46,11.04823515]
[1766088616180,0.65,118.5,118.46,11.04823515]
[1766088616358,0.65,118.5,118.45,11.04823515]
[1766088618653,0.65,118.5,118.46,11.04823515]
[1766088618856,0.65,118.5,118.45,11.04823515]
[1766088619068,0.65,118.48,118.43,19.49204161]
[1766088620369,19.48790334,118.49,118.42,9.24]
[1766088620370,0.65,118.47,118.42,19.85818007]
[1766088620597,9.26,118.49,118.46,11.04823515]
[1766088620968,0.65,118.5,118.46,11.04823515]
[1766088621173,9.26,118.53,118.48,11.04823515]
[1766088621174,9.91,118.53,118.48,11.04823515]
[1766088621386,20.30823515,118.53,118.46,10.43767296]
[1766088621570,0.65,118.52,118.47,11.04823515]
[1766088621896,11.04823515,118.5,118.44,21.48590811]
[1766088622075,0.65,118.49,118.44,21.48590811]
[1766088622270,0.65,118.46,118.4,8.44563176]
[1766088622471,0.65,118.46,118.39,21.11550544]
[1766088622472,0.65,118.46,118.41,11.04823515]
[1766088622686,11.04823515,118.46,118.4,19.85818007]
[1766088622994,0.65,118.45,118.4,30.29585303]
[1766088623495,0.65,118.45,118.41,11.04823515]
[1766088623792,0.65,118.46,118.41,11.04823515]
[1766088623994,11.69823515,118.47,118.41,11.04823515]
[1766088624172,0.65,118.47,118.42,11.04823515]
[1766088624587,0.65,118.47,118.42,19.49273003]
[1766088625095,0.65,118.5,118.46,11.04823515]
[1766088625342,0.65,118.52,118.47,11.04823515]
[1766088625490,7.43626944,118.51,118.46,6.78626944]
[1766088626200,0.65,118.5,118.45,6.78626944]
[1766088626398,0.65,118.49,118.45,15.59621436]
[1766088626602,0.65,118.51,118.46,6.78626944]
[1766088626802,0.65,118.51,118.46,15.22787415]
[1766088627311,0.65,118.51,118.47,6.78626944]
[1766088627915,21.09045027,118.54,118.48,6.78626944]
[1766088627916,0.65,118.53,118.48,6.78626944]
[1766088628494,6.78626944,118.53,118.47,27.68825995]
[1766088628823,9.24,118.55,118.47,10.43767296]
[1766088628824,0.65,118.51,118.47,10.43767296]
[1766088629182,0.65,118.51,118.47,6.78626944]
[1766088629490,0.65,118.51,118.46,6.78626944]
[1766088630121,0.65,118.5,118.45,17.2239424]
[1766088630492,0.65,118.5,118.45,25.66626028]
[1766088631024,0.65,118.5,118.45,18.87999084]
[1766088631198,0.65,118.5,118.45,25.66626028]
[1766088631518,19.67767296,118.55,118.47,6.78626944]
[1766088631519,7.43626944,118.52,118.47,6.78626944]
[1766088631706,7.43626944,118.51,118.45,18.87999084]
[1766088631908,0.65,118.51,118.46,6.78626944]
[1766088632302,7.43626944,118.51,118.46,6.78626944]
[1766088632503,0.65,118.51,118.46,15.59621436]
[1766088632688,0.65,118.51,118.46,24.03727006]
[1766088632911,7.43626944,118.51,118.46,6.78626944]
[1766088633115,6.78626944,118.51,118.46,6.78626944]
[1766088633411,6.78626944,118.51,118.46,15.22792604]
[1766088633799,7.43626944,118.51,118.46,6.78626944]
[1766088634010,7.43626944,118.51,118.45,18.87973646]
[1766088634011,7.43626944,118.5,118.45,17.2239424]
[1766088634210,0.65,118.5,118.46,6.78626944]
[1766088634389,0.65,118.5,118.45,17.2239424]
[1766088634593,0.65,118.49,118.45,17.2239424]
[1766088634903,0.65,118.51,118.46,6.78626944]
[1766088635096,0.65,118.51,118.46,15.59621436]
[1766088635301,0.65,118.51,118.46,6.78626944]
[1766088635602,0.65,118.51,118.46,15.59621436]
[1766088635809,0.65,118.51,118.47,6.78626944]
[1766088636004,0.65,118.53,118.49,6.78626944]
[1766088636204,0.65,118.53,118.47,9.24]
[1766088636404,8.80994492,118.56,118.52,6.78626944]
[1766088636405,0.65,118.56,118.52,6.78626944]
[1766088636716,0.65,118.52,118.48,10.43767296]
[1766088637011,0.65,118.51,118.47,6.78626944]
[1766088637518,0.65,118.51,118.47,15.22716137]
[1766088637717,0.65,118.51,118.47,8.44089193]
[1766088637893,0.65,118.51,118.46,34.47520916]
[1766088638216,0.65,118.5,118.46,10.43767296]
[1766088638524,7.43626944,118.5,118.46,10.43767296]
[1766088638815,15.78764353,118.47,118.41,0.68]
[1766088639037,6.78626944,118.45,118.41,0.68]
[1766088639193,6.78626944,118.44,118.41,0.68]
[1766088639533,6.78626944,118.42,118.37,0.68]
[1766088639841,6.78626944,118.41,118.37,0.68]
[1766088640123,0.56,118.43,118.37,9.12762695]
[1766088640348,6.78626944,118.42,118.37,0.68]
[1766088640491,9.24,118.44,118.39,9.12665719]
[1766088640691,9.24,118.44,118.4,8.44544664]
[1766088640895,9.24,118.44,118.41,0.68]
[1766088641325,6.78626944,118.45,118.41,0.68]
[1766088642103,6.78626944,118.44,118.39,0.68]
[1766088642609,6.78626944,118.43,118.39,0.68]
[1766088642915,15.23009006,118.43,118.39,0.68]
[1766088643303,6.78626944,118.42,118.39,0.68]
[1766088643935,6.78626944,118.43,118.39,0.68]
[1766088644433,6.78626944,118.46,118.41,6.78626944]
[1766088644608,6.78626944,118.47,118.42,0.68]
[1766088644922,6.78626944,118.48,118.43,0.68]
[1766088645133,10.99767296,118.5,118.45,0.68]
[1766088645360,6.78626944,118.5,118.46,0.68]
[1766088645705,6.78626944,118.51,118.46,0.68]
[1766088645903,6.78626944,118.5,118.46,0.68]
[1766088646303,6.78626944,118.48,118.43,27.1439424]
[1766088646503,0.56,118.5,118.44,0.68]
[1766088646504,6.78626944,118.49,118.44,0.68]
[1766088646726,6.78626944,118.49,118.45,0.68]
[1766088646930,17.2239424,118.5,118.46,0.68]
[1766088647132,6.78626944,118.49,118.45,0.68]
[1766088647816,17.2239424,118.5,118.45,0.68]
[1766088648239,17.2239424,118.5,118.45,15.22838521]
[1766088648428,17.2239424,118.5,118.46,0.68]
[1766088648734,8.43752529,118.52,118.46,7.46626944]
[1766088649026,19.43519825,118.52,118.47,0.68]
[1766088649246,6.78626944,118.51,118.47,0.68]
[1766088649432,6.78626944,118.5,118.45,0.68]
[1766088650938,6.78626944,118.49,118.45,0.68]
[1766088651327,8.43895185,118.5,118.45,0.68]
[1766088651528,8.43895185,118.5,118.42,0.68]
[1766088651529,6.78626944,118.46,118.42,0.68]
[1766088651932,6.78626944,118.47,118.42,0.68]
[1766088652321,6.78626944,118.46,118.42,0.68]
[1766088652516,17.2239424,118.48,118.42,6.78626944]
[1766088652711,21.09474336,118.52,118.44,6.78626944]
[1766088652911,18.23753208,118.52,118.46,0.68]
[1766088653245,6.78626944,118.47,118.37,42.23846603]
[1766088653421,8.80994492,118.51,118.41,0.68]
[1766088653422,6.78626944,118.45,118.41,0.68]
[1766088653737,0.56,118.47,118.41,0.68]
[1766088653939,6.78626944,118.47,118.42,0.68]
[1766088654236,16.02626944,118.47,118.42,0.68]
[1766088654827,9.24,118.47,118.42,7.46626944]
[1766088655041,9.24,118.47,118.43,0.68]
[1766088655222,17.2239424,118.48,118.43,0.68]
[1766088655638,17.2239424,118.5,118.45,0.68]
[1766088655945,6.78626944,118.49,118.45,0.68]
[1766088656443,6.78626944,118.47,118.42,0.68]
[1766088656649,6.78626944,118.48,118.43,0.68]
[1766088656847,26.4639424,118.49,118.44,0.68]
[1766088657150,16.02626944,118.5,118.45,0.68]
[1766088657322,6.78626944,118.49,118.45,0.68]
[1766088657522,17.67885015,118.5,118.44,0.68]
[1766088657523,6.78626944,118.48,118.44,0.68]
[1766088657946,6.78626944,118.47,118.44,0.68]
[1766088658328,9.24,118.5,118.46,0.68]
[1766088659251,15.22449033,118.51,118.46,0.68]
[1766088659419,15.22449033,118.51,118.44,21.10773387]
[1766088659420,7.34626944,118.5,118.44,0.68]
[1766088659622,6.78626944,118.49,118.44,0.68]
[1766088659824,6.78626944,118.47,118.42,7.46626944]
[1766088660243,6.78626944,118.47,118.42,15.91062074]
[1766088660450,6.78626944,118.48,118.44,0.68]
[1766088660759,6.78626944,118.5,118.46,0.68]
[1766088661131,26.4639424,118.51,118.46,0.68]
[1766088661335,6.78626944,118.5,118.46,0.68]
[1766088661629,10.43767296,118.51,118.46,15.22778209]
[1766088661834,10.43767296,118.51,118.47,0.67]
[1766088662458,6.78626944,118.53,118.48,0.67]
[1766088663357,6.78626944,118.53,118.4,8.80994492]
[1766088663358,8.80994492,118.51,118.4,8.80994492]
[1766088663534,6.78626944,118.49,118.42,0.67]
[1766088663856,6.78626944,118.48,118.45,0.67]
[1766088664024,6.78626944,118.48,118.44,0.67]
[1766088664626,6.78626944,118.49,118.44,0.67]
[1766088665468,15.22590728,118.49,118.44,0.67]
[1766088665825,42.37164106,118.57,118.47,6.78626944]
[1766088666028,42.37164106,118.57,118.5,0.67]
[1766088666029,6.78626944,118.54,118.5,0.67]
[1766088666230,10.43767296,118.53,118.5,0.67]
[1766088666433,6.78626944,118.54,118.5,0.67]
[1766088666737,10.43767296,118.53,118.5,0.67]
[1766088667159,17.2239424,118.53,118.5,0.67]
[1766088667365,17.2239424,118.53,118.48,6.78626944]
[1766088667366,6.78626944,118.52,118.48,0.67]
[1766088667550,6.78626944,118.51,118.46,7.45626944]
[1766088667875,6.78626944,118.5,118.46,0.67]
[1766088668762,9.8,118.52,118.46,0.67]
[1766088669066,6.78626944,118.51,118.46,0.67]
[1766088669437,6.78626944,118.5,118.46,0.67]
[1766088670332,6.78626944,118.49,118.44,7.45626944]
[1766088670554,7.34626944,118.49,118.44,7.45626944]
[1766088670958,6.78626944,118.47,118.43,0.67]
[1766088671260,6.78626944,118.46,118.41,26.33916691]
[1766088671453,6.78626944,118.46,118.42,0.67]
[1766088672444,15.22743471,118.47,118.42,0.67]
[1766088672638,6.78626944,118.46,118.42,0.67]
[1766088673655,6.78626944,118.46,118.39,17.25623816]
[1766088673862,6.78626944,118.45,118.41,0.71]
[1766088674450,6.78626944,118.43,118.36,0.71]
[1766088674645,6.78626944,118.42,118.37,0.71]
[1766088675062,6.78626944,118.42,118.38,0.71]
[1766088675568,8.44452276,118.42,118.38,0.71]
[1766088675739,6.78626944,118.4,118.35,0.71]
[1766088675944,6.78626944,118.4,118.36,0.71]
[1766088676840,7.0761146,118.51,118.4,9.51994492]
[1766088677080,0.56,118.54,118.44,6.78626944]
[1766088677256,6.78626944,118.5,118.46,0.71]
[1766088677563,15.22519568,118.5,118.46,0.71]
[1766088677732,6.78626944,118.5,118.46,0.71]
[1766088677940,6.78626944,118.51,118.46,0.71]
[1766088678146,6.78626944,118.51,118.46,9.15164074]
[1766088678657,18.23744411,118.52,118.46,9.15164074]
[1766088678865,17.2239424,118.51,118.46,9.15164074]
[1766088680554,0.56,118.54,118.47,7.49626944]
[1766088680752,16.02626944,118.53,118.49,0.71]
[1766088681062,8.43597098,118.54,118.49,0.71]
[1766088681063,6.78626944,118.54,118.49,0.71]
[1766088681242,16.02626944,118.55,118.5,0.71]
[1766088682166,16.02626944,118.55,118.51,0.71]
[1766088682364,6.78626944,118.53,118.48,7.49626944]
[1766088682660,6.78626944,118.53,118.48,0.71]
[1766088683768,6.78626944,118.53,118.48,15.93639134]
[1766088684069,6.78626944,118.53,118.49,0.71]
[1766088684649,7.34626944,118.52,118.46,26.37531006]
[1766088684858,6.78626944,118.52,118.47,7.49626944]
[1766088685376,6.78626944,118.52,118.47,0.71]
[1766088685567,6.78626944,118.5,118.47,0.71]
[1766088685761,8.44095551,118.47,118.43,0.71]
[1766088685965,6.78626944,118.46,118.43,0.71]
[1766088686845,9.24,118.48,118.43,7.49626944]
[1766088687059,9.24,118.48,118.45,0.71]
[1766088687448,9.24,118.5,118.47,0.71]
[1766088688354,32.08988985,118.53,118.47,0.71]
[1766088688355,10.99767296,118.53,118.47,0.71]
[1766088688555,11.03038078,118.53,118.48,0.71]
[1766088688768,11.03038078,118.53,118.49,0.71]
[1766088688974,9.24,118.54,118.49,0.71]
[1766088689181,0.2,118.57,118.53,0.71]
[1766088689381,0.2,118.57,118.54,11.03038078]
[1766088689668,0.2,118.57,118.55,0.71]
[1766088689874,11.23038078,118.57,118.53,0.71]
[1766088690178,0.56,118.56,118.49,0.71]
[1766088690387,11.03038078,118.54,118.49,0.71]
[1766088690566,11.03038078,118.53,118.49,0.71]
[1766088691276,11.03038078,118.51,118.47,0.71]
[1766088691851,10.43767296,118.54,118.48,0.71]
[1766088692173,18.60994492,118.55,118.49,0.71]
[1766088692174,9.24,118.55,118.49,0.71]
[1766088692377,9.24,118.55,118.5,0.71]
[1766088692378,20.27038078,118.55,118.5,0.71]
[1766088692880,11.03038078,118.53,118.5,0.71]
[1766088693183,11.03038078,118.52,118.48,0.71]
[1766088693474,9.8,118.55,118.48,0.71]
[1766088693656,11.03038078,118.53,118.48,9.15001002]
[1766088693866,9.8,118.55,118.48,9.15019845]
[1766088694052,11.03038078,118.52,118.48,9.15019845]
[1766088694261,11.03038078,118.52,118.48,0.71]
[1766088694483,9.24,118.55,118.49,0.71]
[1766088694685,11.03038078,118.54,118.5,0.71]
[1766088695766,11.03038078,118.53,118.5,0.71]
[1766088696889,11.03038078,118.55,118.51,0.71]
[1766088697778,11.03038078,118.55,118.49,0.71]
[1766088697779,11.03038078,118.53,118.49,0.71]
[1766088697966,11.03038078,118.51,118.47,18.39082607]
[1766088698167,11.03038078,118.51,118.47,0.71]
[1766088698568,11.03038078,118.5,118.47,0.71]
[1766088698770,0.56,118.5,118.45,0.71]
[1766088698981,11.03038078,118.46,118.36,0.99999999]
[1766088699287,11.03038078,118.44,118.4,0.71]
[1766088699492,9.24,118.45,118.4,11.03038078]
[1766088699690,21.46805374,118.46,118.41,0.71]
[1766088699886,9.24,118.46,118.42,0.71]
[1766088700189,11.03038078,118.45,118.42,0.71]
[1766088700383,11.03038078,118.44,118.4,0.71]
[1766088700990,11.03038078,118.43,118.39,0.71]
[1766088701298,9.8,118.46,118.39,19.47667535]
[1766088701482,11.03038078,118.46,118.41,0.71]
[1766088702191,30.70805374,118.47,118.43,0.71]
[1766088702501,19.67767296,118.47,118.43,0.71]
[1766088702877,30.70805374,118.47,118.43,0.71]
[1766088703097,11.03038078,118.48,118.43,0.71]
[1766088703277,20.27038078,118.49,118.44,0.67]
[1766088704484,9.24,118.49,118.45,0.67]
[1766088704688,11.03038078,118.53,118.47,11.03038078]
[1766088704994,42.17488202,118.56,118.49,0.67]
[1766088704995,0.56,118.56,118.49,0.67]
[1766088705187,11.03038078,118.53,118.49,0.67]
[1766088705380,11.03038078,118.54,118.49,0.67]
[1766088705603,11.03038078,118.54,118.46,21.46805374]
[1766088705604,11.03038078,118.52,118.46,21.46805374]
[1766088705805,11.03038078,118.51,118.47,0.67]
[1766088705980,11.03038078,118.51,118.46,0.67]
[1766088706295,11.03038078,118.52,118.47,0.67]
[1766088706872,17.6767131,118.53,118.47,0.67]
[1766088707074,20.27038078,118.53,118.47,11.03038078]
[1766088707274,8.63397955,118.57,118.5,11.70038078]
[1766088707602,9.24,118.56,118.51,0.67]
[1766088707776,0.2,118.57,118.54,0.67]
[1766088708100,0.2,118.57,118.5,19.24761788]
[1766088708280,0.2,118.57,118.55,0.67]
[1766088708478,0.1,118.58,118.54,8.43597001]
[1766088708479,0.76,118.63,118.57,0.67]
[1766088708798,22.22805374,118.63,118.57,0.67]
[1766088709174,11.19767296,118.63,118.57,0.67]
[1766088709376,11.03038078,118.62,118.57,0.67]
[1766088709691,19.46114312,118.62,118.57,0.67]
[1766088710081,11.03038078,118.61,118.57,0.67]
[1766088710407,11.03038078,118.59,118.54,0.67]
[1766088710598,0.66,118.6,118.52,30.70805374]
[1766088710599,11.03038078,118.58,118.52,30.70805374]
[1766088710793,11.03038078,118.57,118.52,9.91]
[1766088710975,11.03038078,118.54,118.49,0.67]
[1766088711177,19.67767296,118.56,118.49,0.67]
[1766088711178,11.03038078,118.53,118.49,0.67]
[1766088711403,11.03038078,118.52,118.47,0.67]
[1766088711574,39.51799866,118.56,118.47,8.44064143]
[1766088711575,28.48761788,118.56,118.47,8.44064143]
[1766088711778,8.43546625,118.55,118.48,0.67]
[1766088712082,11.03038078,118.53,118.48,0.67]
[1766088712278,11.03038078,118.55,118.5,0.67]
[1766088712611,19.67767296,118.56,118.51,0.67]
[1766088712780,9.24,118.56,118.51,0.67]
[1766088712981,20.27038078,118.56,118.51,0.67]
[1766088713208,10.43767296,118.58,118.52,0.67]
[1766088713520,11.03038078,118.57,118.52,0.67]
[1766088714208,11.03038078,118.55,118.5,9.10861947]
[1766088714499,11.72038078,118.56,118.5,9.10861947]
[1766088714680,22.15805374,118.58,118.52,0.67]
[1766088714881,11.12767296,118.58,118.52,0.67]
[1766088715183,22.15805374,118.58,118.52,0.67]
[1766088715387,10.43767296,118.58,118.53,0.67]
[1766088715587,10.43767296,118.58,118.53,9.10631573]
[1766088716190,10.43767296,118.58,118.54,0.67]
[1766088717093,21.46805374,118.58,118.54,0.67]
[1766088717483,10.43767296,118.58,118.54,0.67]
[1766088717685,11.12767296,118.58,118.51,9.10762292]
[1766088717885,11.03038078,118.57,118.52,8.80994492]
[1766088718227,11.03038078,118.57,118.52,0.67]
[1766088718515,11.72038078,118.57,118.52,0.67]
[1766088718724,11.72038078,118.57,118.52,9.47994492]
[1766088719895,11.72038078,118.57,118.52,17.91695118]
[1766088720207,19.67767296,118.58,118.53,8.80994492]
[1766088720405,30.70805374,118.58,118.53,9.47994492]
[1766088720711,30.70805374,118.58,118.53,19.8403257]
[1766088720712,9.24,118.58,118.53,19.8403257]
[1766088720908,9.24,118.58,118.55,9.47994492]
[1766088721117,11.03038078,118.59,118.55,0.67]
[1766088721487,11.72038078,118.6,118.55,0.67]
[1766088721722,9.24,118.61,118.56,11.03038078]
[1766088721901,0.9,118.63,118.58,8.43312531]
[1766088722094,0.2,118.63,118.58,20.13350609]
[1766088722291,0.2,118.63,118.59,20.5103257]
[1766088722489,0.2,118.63,118.6,0.67]
[1766088722689,0.2,118.63,118.54,8.80994492]
[1766088722690,0.7,118.6,118.54,8.80994492]
[1766088722927,11.03038078,118.56,118.5,20.94038078]
[1766088723094,11.03038078,118.55,118.5,18.34871482]
[1766088723293,0.7,118.56,118.5,60.24381497]
[1766088723484,0.7,118.56,118.51,11.70038078]
[1766088723693,10.43767296,118.6,118.54,9.47994492]
[1766088724014,11.03038078,118.59,118.54,9.47994492]
[1766088724213,10.43767296,118.59,118.55,0.67]
[1766088724422,11.03038078,118.58,118.53,10.43767296]
[1766088724652,11.73038078,118.58,118.53,8.80994492]
[1766088724989,10.43767296,118.59,118.54,17.24560969]
[1766088725213,21.46805374,118.59,118.54,17.24560969]